fUST/lending_fUST_20251206
["ID","MTS","AMOUNT","RATE_DAILY","PERIOD"]
[396390455,1764950486400,6259.29,0.0001,2]
[396390456,1764950486448,10000.01,0.0001,2]
[396390457,1764950486493,10000.01,0.0001,2]
[396390458,1764950486539,9056.689999,0.0001,2]
[396390478,1764950818274,943.320001,0.00011255,2]
[396390479,1764950818332,1754.17740442,0.00011255,2]
[396390481,1764950835408,5000.0,0.00011255,2]
[396390561,1764951038713,-3197.18973189,0.00011407,2]
[396390716,1764951040820,-1802.81026811,0.00011407,2]
[396390717,1764951040830,-243.0,0.00011407,2]
[396390718,1764951040841,-198.20716312,0.00011522,2]
[396390719,1764951040851,-300.0,0.00011664,2]
[396390720,1764951040860,-300.0,0.00011664,2]
[396390721,1764951040870,-387.65254722,0.00011664,2]
[396390722,1764951040892,-175.48113396,0.00011664,2]
[396390723,1764951040903,-107.86631882,0.00011664,2]
[396390724,1764951040912,-197.09748348,0.00011665,2]
[396390725,1764951040924,-362.2,0.00011665,2]
[396390815,1764951046613,-160.70251652,0.00011665,2]
[396390817,1764951046623,-180.0,0.00011665,2]
[396390819,1764951046633,-300.0,0.00011665,2]
[396390821,1764951046643,-500.0,0.00011665,2]
[396390823,1764951046652,-500.0,0.00011665,2]
[396390824,1764951046661,-411.19305872,0.00011665,2]
[396390826,1764951046671,-1678.58662816,0.00011666,2]
[396390829,1764951046682,-48321.41337184,0.00011666,2]
[396390831,1764951046692,-500.0,0.00011667,2]
[396390833,1764951046701,-500.0,0.00011667,2]
[396390835,1764951046710,-500.0,0.00011667,2]
[396390837,1764951046720,-500.0,0.00011667,2]
[396390839,1764951046729,-500.0,0.00011667,2]
[396390841,1764951046743,-500.0,0.00011667,2]
[396390843,1764951046754,-306.89062949,0.00011669,2]
[396390845,1764951046764,-429.15708325,0.00011735,2]
[396390847,1764951046775,-300.0,0.00011899,2]
[396390849,1764951046785,-300.0,0.00011899,2]
[396390851,1764951046795,-300.0,0.00011899,2]
[396390853,1764951046804,-300.0,0.00011899,2]
[396390855,1764951046815,-300.0,0.00011899,2]
[396390857,1764951046825,-300.0,0.00011899,2]
[396390859,1764951046834,-300.0,0.00011899,2]
[396390861,1764951046843,-300.0,0.00011899,2]
[396390863,1764951046852,-300.0,0.00011899,2]
[396390865,1764951046862,-300.0,0.00011899,2]
[396390867,1764951046872,-300.0,0.00011899,2]
[396390869,1764951046881,-300.0,0.00011899,2]
[396390871,1764951046890,-300.0,0.00011899,2]
[396390873,1764951046901,-300.0,0.00011899,2]
[396390875,1764951046910,-300.0,0.00011899,2]
[396390877,1764951046919,-206.818028,0.00011904,2]
[396390879,1764951046930,-600.0,0.00012136,2]
[396390881,1764951046940,-224.37785274,0.00012351,2]
[396390883,1764951046949,-403.88013492,0.00012351,2]
[396390885,1764951046959,-718.00912875,0.00012351,2]
[396390887,1764951046968,-207.9656408,0.00012352,2]
[396390889,1764951046977,-374.33815345,0.00012352,2]
[396390891,1764951046987,-665.49005057,0.00012352,2]
[396390892,1764951046996,-289.0,0.00012809,2]
[396390895,1764951047006,-420.0,0.00012809,2]
[396390897,1764951047015,-287.0,0.0001281,2]
[396390899,1764951047026,-195.95832223,0.00013001,2]
[396390900,1764951047035,-352.37225504,0.00013001,2]
[396390902,1764951047045,-589.72790697,0.00013151,2]
[396390904,1764951047054,-500.0,0.00013175,2]
[396390906,1764951047063,-500.0,0.00013175,2]
[396390908,1764951047073,-500.0,0.00013175,2]
[396390910,1764951047082,-171.95451081,0.00013175,2]
[396390912,1764951047091,-500.0,0.00013175,2]
[396390914,1764951047101,-500.0,0.00013175,2]
[396390916,1764951047111,-269.94955677,0.00013273,2]
[396390918,1764951047120,-500.0,0.00013273,2]
[396390920,1764951047130,-720.0,0.0001335,2]
[396390922,1764951047140,-1254.18718466,0.00013416,2]
[396390924,1764951047150,-233.88445248,0.00013522,2]
[396390926,1764951047160,-1000.0,0.00013555,3]
[396390928,1764951047169,-201.90985976,0.00013597,2]
[396390930,1764951047179,-179.87499893,0.00013686,2]
[396390932,1764951047188,-323.77499808,0.00013686,2]
[396390934,1764951047197,-575.59999659,0.00013686,2]
[396390936,1764951047206,-1000.0,0.00013699,2]
[396390937,1764951047216,-859.970994,0.00013699,2]
[396390939,1764951047225,-475.0800558,0.00013699,2]
[396390941,1764951047235,-500.0,0.00013699,2]
[396390944,1764951047245,-500.0,0.00013699,2]
[396390946,1764951047255,-500.0,0.00013699,2]
[396390948,1764951047265,-201.90985976,0.0001373,2]
[396390949,1764951047277,-2312.83697232,0.00013773,2]
[396390951,1764951047286,-501.84,0.0001382,2]
[396390953,1764951047296,-1000.0,0.00013821,2]
[396390956,1764951047305,-1000.0,0.00013838,3]
[396390957,1764951047315,-201.90985976,0.00013863,2]
[396390959,1764951047324,-201.90985976,0.00013996,2]
[396390961,1764951047334,-587.0,0.00014066,2]
[396390964,1764951047343,-201.90985976,0.00014129,2]
[396390966,1764951047353,-28136.99705825,0.00014129,2]
[396391009,1764951047793,-429.46998,0.00014129,2]
[396391035,1764951048177,-357.078,0.00014129,2]
[396391817,1764951353310,899.0,0.00012517,3]
[396391997,1764951602610,217.97,1e-05,2]
[396392588,1764952036584,3027.86259558,0.00011255,2]
[396392589,1764952036612,1972.13740442,0.00011255,2]
[396392590,1764952044752,894.04142812,0.00011255,2]
[396392592,1764952060837,5000.0,0.00011255,2]
[396392596,1764952083479,2133.83116746,0.00011255,2]
[396392597,1764952083509,2866.16883254,0.00011255,2]
[396392602,1764952106198,1523.30505043,0.00011255,2]
[396392613,1764952189255,150.0,0.00011255,2]
[396392707,1764952231913,-245.0,0.00011657,2]
[396392708,1764952231924,-192.56533081,0.00011658,2]
[396392709,1764952231933,-8023.83466919,0.00012216,2]
[396392710,1764952232042,-637.83766841,0.00012216,2]
[396392711,1764952232052,-203.9077095,0.00012224,2]
[396392712,1764952232061,-158.67,0.00012517,2]
[396392713,1764952232071,-300.0,0.0001275,2]
[396392714,1764952232080,-156.79922875,0.00012751,2]
[396392715,1764952232089,-500.0,0.00012751,2]
[396392716,1764952232100,-500.0,0.00012751,2]
[396392717,1764952232110,-500.0,0.00012751,2]
[396392718,1764952232121,-283.44262569,0.00012751,2]
[396392719,1764952232131,-500.0,0.00012751,2]
[396392720,1764952232140,-500.0,0.00012751,2]
[396392721,1764952232150,-500.0,0.00012751,2]
[396392722,1764952232159,-500.0,0.00012751,2]
[396392723,1764952232168,-500.0,0.00012751,2]
[396392724,1764952232179,-500.0,0.00012751,2]
[396392725,1764952232191,-500.0,0.00012751,2]
[396392726,1764952232201,-500.0,0.00012751,2]
[396392727,1764952232211,-268.74412481,0.00012751,2]
[396392728,1764952232221,-1437.09864284,0.00012752,2]
[396392729,1764952232232,-629.30076944,0.00012752,2]
[396392888,1764952240240,-324.35298941,0.00012752,2]
[396392891,1764952240263,-714.1592,0.00012752,2]
[396392894,1764952240276,-1326.66510949,0.00012752,2]
[396393356,1764952244666,-503.19358527,0.00012752,2]
[396393358,1764952244678,-803.77226077,0.00012752,2]
[396393360,1764952244689,-3060.99999998,0.00012752,2]
[396393362,1764952244699,-392.82455677,0.00012752,2]
[396393365,1764952244710,-445.0,0.00012752,2]
[396393367,1764952244721,-377.95093046,0.00012752,2]
[396393390,1764952244937,-4455.74392977,0.00012752,2]
[396393392,1764952244947,-173.0706094,0.00012964,2]
[396393394,1764952244957,-311.52709691,0.00012964,2]
[396393396,1764952244966,-553.82595007,0.00012964,2]
[396393398,1764952244976,-864.48769394,0.00012964,2]
[396393400,1764952244985,-875.1178471,0.00013173,2]
[396393402,1764952244995,-500.0,0.00013273,2]
[396393404,1764952245004,-500.0,0.00013273,2]
[396393406,1764952245014,-500.0,0.00013273,2]
[396393408,1764952245024,-500.0,0.00013273,2]
[396393410,1764952245033,-526.73683722,0.00013273,2]
[396393412,1764952245045,-158.77768576,0.00013273,2]
[396393413,1764952245055,-500.0,0.00013273,2]
[396393414,1764952245065,-501.93265145,0.00013273,2]
[396393415,1764952245074,-300.0,0.00013437,2]
[396393416,1764952245084,-300.0,0.00013437,2]
[396393417,1764952245094,-300.0,0.00013437,2]
[396393418,1764952245104,-300.0,0.00013437,2]
[396393419,1764952245113,-300.0,0.00013437,2]
[396393420,1764952245123,-300.0,0.00013437,2]
[396393421,1764952245133,-300.0,0.00013437,2]
[396393422,1764952245142,-300.0,0.00013437,2]
[396393423,1764952245152,-300.0,0.00013437,2]
[396393424,1764952245162,-300.0,0.00013437,2]
[396393425,1764952245172,-300.0,0.00013437,2]
[396393426,1764952245181,-300.0,0.00013437,2]
[396393427,1764952245191,-300.0,0.00013437,2]
[396393428,1764952245200,-300.0,0.00013437,2]
[396393429,1764952245210,-300.0,0.00013437,2]
[396393430,1764952245220,-211.92938405,0.00013646,2]
[396393431,1764952245230,-381.0914184,0.00013646,2]
[396393432,1764952245239,-500.0,0.00013656,2]
[396393433,1764952245248,-500.0,0.00013656,2]
[396393434,1764952245259,-500.0,0.00013656,2]
[396393435,1764952245270,-500.0,0.00013656,2]
[396393437,1764952245279,-500.0,0.00013656,2]
[396393438,1764952245291,-500.0,0.00013656,2]
[396393441,1764952245301,-500.0,0.00013656,2]
[396393443,1764952245311,-500.0,0.00013656,2]
[396393445,1764952245321,-2312.83697232,0.00013656,2]
[396393447,1764952245330,-500.0,0.00013656,2]
[396393448,1764952245341,-500.0,0.00013656,2]
[396393450,1764952245351,-500.0,0.00013656,2]
[396393452,1764952245360,-500.0,0.00013656,2]
[396393454,1764952245370,-277.84046487,0.00013656,2]
[396393456,1764952245378,-250.0,0.00013656,2]
[396393458,1764952245388,-250.0,0.00013656,2]
[396393460,1764952245397,-250.0,0.00013656,2]
[396393462,1764952245407,-250.0,0.00013656,2]
[396393464,1764952245417,-250.0,0.00013656,2]
[396393466,1764952245426,-250.0,0.00013656,2]
[396393468,1764952245435,-250.0,0.00013656,2]
[396393470,1764952245445,-359.67597402,0.00013656,2]
[396393472,1764952245454,-259.25,0.00013656,2]
[396393474,1764952245463,-227.22709035,0.00013658,2]
[396393476,1764952245473,-500.0,0.00013698,2]
[396393478,1764952245482,-500.0,0.00013698,2]
[396393480,1764952245492,-500.0,0.00013698,2]
[396393482,1764952245501,-500.0,0.00013699,2]
[396393484,1764952245511,-500.0,0.00013699,2]
[396393486,1764952245521,-506.45744625,0.00013699,2]
[396393488,1764952245530,-600.0,0.00013705,2]
[396393490,1764952245541,-500.0,0.0001376,2]
[396393492,1764952245552,-322.32981292,0.0001376,2]
[396393494,1764952245562,-500.0,0.0001376,2]
[396393496,1764952245571,-500.0,0.0001376,2]
[396393498,1764952245580,-500.0,0.0001376,2]
[396393500,1764952245590,-500.0,0.0001376,2]
[396393502,1764952245600,-500.0,0.0001376,2]
[396393504,1764952245609,-630.68923011,0.0001376,2]
[396393506,1764952245619,-5876.0332176,0.00013761,2]
[396393508,1764952245628,-24807.6609315,0.00013761,2]
[396393510,1764952245638,-1000.0,0.00013821,2]
[396393512,1764952245648,-151.0,0.00013821,2]
[396393514,1764952245658,-151.0,0.00013821,2]
[396393516,1764952245667,-152.595975,0.00013821,2]
[396393518,1764952245677,-151.0,0.00013821,2]
[396393520,1764952245686,-151.0,0.00013821,2]
[396393522,1764952245695,-1000.0,0.00013837,3]
[396393524,1764952245705,-875.11784705,0.00013938,2]
[396393526,1764952245715,-168.7,0.00013973,2]
[396393528,1764952245724,-420.0,0.00013986,2]
[396393530,1764952245734,-151.0,0.00014,2]
[396393532,1764952245743,-151.0,0.00014,2]
[396393534,1764952245752,-151.0,0.00014,2]
[396393536,1764952245761,-151.0,0.00014029,2]
[396393538,1764952245771,-151.0,0.00014029,2]
[396393540,1764952245780,-151.0,0.00014029,2]
[396393542,1764952245789,-819445.07766928,0.00014029,2]
[396393544,1764952245802,-1521.51154497,0.00014029,2]
[396393566,1764952246005,-8949.0,0.00014029,2]
[396393569,1764952246026,-1157.27,0.00014029,2]
[396393572,1764952246044,-19219.3427055,0.00014029,2]
[396399992,1764953431768,-188.50135441,0.00012438,2]
[396399994,1764953431778,-252.0,0.00012438,2]
[396399996,1764953431787,-187.16948238,0.00012597,2]
[396399998,1764953431797,-287.37373219,0.00012619,2]
[396400001,1764953431811,-114.79052463,0.00012619,2]
[396400003,1764953431821,-162.63350364,0.00013273,2]
[396400005,1764953431832,-339.92403058,0.00013273,2]
[396400007,1764953431842,-500.0,0.00013273,2]
[396400009,1764953431851,-61.43239179,0.0001369,2]
[396400011,1764953431863,-417.16503418,0.0001369,2]
[396400131,1764953438138,-845.92042633,0.0001369,2]
[396400132,1764953438152,-988.31912002,0.0001369,2]
[396400133,1764953438162,-500.0,0.00013698,2]
[396400134,1764953438173,-500.0,0.00013698,2]
[396400135,1764953438184,-300.0,0.00013698,2]
[396400136,1764953438195,-327.0,0.00013698,2]
[396400137,1764953438205,-816.972444,0.00013699,2]
[396400138,1764953438215,-1000.0,0.00013699,2]
[396400139,1764953438225,-500.0,0.00013699,2]
[396400140,1764953438236,-500.0,0.00013699,2]
[396400141,1764953438246,-500.0,0.0001376,2]
[396400142,1764953438256,-500.0,0.0001376,2]
[396400143,1764953438267,-153.0,0.000138,2]
[396400144,1764953438276,-153.0,0.000138,2]
[396400145,1764953438287,-153.0,0.000138,2]
[396400146,1764953438297,-675.68600084,0.00013821,2]
[396400147,1764953438324,-324.31399916,0.00013821,2]
[396400148,1764953438334,-1000.0,0.00013836,3]
[396400149,1764953438345,-538.80679229,0.00013837,3]
[396400150,1764953438355,-712.76240423,0.00013837,3]
[396400151,1764953438365,-153.0,0.00013852,2]
[396400152,1764953438375,-243.87109973,0.00013898,2]
[396400153,1764953438385,-153.0,0.000139,2]
[396400154,1764953438395,-153.0,0.000139,2]
[396400155,1764953438410,-153.0,0.000139,2]
[396400156,1764953438421,-631.0,0.00013907,2]
[396400157,1764953438431,-2155.0,0.00013907,2]
[396400158,1764953438441,-996.758,0.00013907,2]
[396400159,1764953438453,-656.33838534,0.00013919,2]
[396400160,1764953438466,-551.24583153,0.00013936,2]
[396400161,1764953438476,-364.26651516,0.00014,2]
[396400162,1764953438487,-647.58491584,0.00014,2]
[396400163,1764953438497,-1010.83957956,0.00014,2]
[396400164,1764953438507,-152.98012931,0.00014,2]
[396400165,1764953438517,-4.23234785,0.00014,2]
[396400166,1764953438534,-271.1318849,0.00014,2]
[396400167,1764953438545,-129.45844899,0.00014,2]
[396400168,1764953438558,-299.64501954,0.00014,2]
[396400187,1764953440002,-60.43294525,0.00014,2]
[396400189,1764953440012,-764.13574588,0.00014,2]
[396400191,1764953440022,-202.3702862,0.00014,2]
[396400193,1764953440033,-259.25,0.00014007,2]
[396400195,1764953440045,-423.27821355,0.00014013,2]
[396400196,1764953440055,-500.0,0.00014013,2]
[396400197,1764953440065,-500.0,0.00014013,2]
[396400198,1764953440075,-403.13393619,0.00014013,2]
[396400199,1764953440085,-1375.7460589,0.00014015,2]
[396400200,1764953440095,-1093.72566756,0.00014015,2]
[396400201,1764953440127,-13827.93438974,0.00014015,2]
[396400202,1764953440137,-500.0,0.00014027,2]
[396400203,1764953440146,-308.77449131,0.00014027,2]
[396400204,1764953440156,-500.0,0.00014027,2]
[396400205,1764953440166,-500.0,0.00014027,2]
[396400206,1764953440175,-500.0,0.00014027,2]
[396400207,1764953440185,-500.0,0.00014027,2]
[396400208,1764953440195,-500.0,0.00014027,2]
[396400209,1764953440204,-500.0,0.00014027,2]
[396400210,1764953440215,-284.71024941,0.00014027,2]
[396400211,1764953440225,-98336.50816159,0.00014028,2]
[396400212,1764953440238,-1277.32845475,0.00014028,2]
[396400238,1764953442955,-431.8605213,0.00013928,2]
[396400239,1764953442965,-4169.57946281,0.00014028,2]
[396400240,1764953442977,-1822.25709309,0.00014028,2]
[396400241,1764953442989,-1046.32681666,0.00014028,2]
[396400242,1764953443001,-5105.55717501,0.00014028,2]
[396400243,1764953443061,-419.18467264,0.00014028,2]
[396400244,1764953443077,-829.53625222,0.00014028,2]
[396400245,1764953443117,-558.85956284,0.00014028,2]
[396400260,1764953445940,-697.71665078,0.00014028,2]
[396400261,1764953445998,-7496.04526952,0.00014028,2]
[396400284,1764953969345,763.0,0.00011255,2]
[396400327,1764954631925,-500.0,0.00013273,2]
[396400329,1764954631937,-171.05684725,0.00013273,2]
[396400334,1764954631977,-15.36924549,0.00013273,2]
[396400336,1764954631988,-259.0,0.00013273,2]
[396400338,1764954631998,-456.59710498,0.00013699,2]
[396400341,1764954632009,-43.40289502,0.00013699,2]
[396400343,1764954632019,-1000.0,0.00013821,2]
[396400345,1764954632029,-1000.0,0.00013836,3]
[396400347,1764954632038,-244.9459702,0.00013837,3]
[396400349,1764954632047,-300.0,0.00013906,2]
[396400351,1764954632057,-250.0,0.00013907,2]
[396400352,1764954632065,-250.718,0.00013907,2]
[396400353,1764954632075,-150.227,0.00013907,2]
[396400354,1764954632084,-231.269,0.00013907,2]
[396400356,1764954632093,-150.0,0.00013907,2]
[396400358,1764954632102,-158.045,0.00013907,2]
[396400360,1764954632111,-415.0,0.00013907,2]
[396400363,1764954632121,-2312.83697232,0.0001392,2]
[396400365,1764954632130,-500.0,0.0001392,2]
[396400367,1764954632139,-199.29717458,0.0001392,2]
[396400369,1764954632149,-606.45415589,0.0001392,2]
[396400371,1764954632158,-500.0,0.0001392,2]
[396400373,1764954632167,-500.0,0.0001392,2]
[396400374,1764954632176,-500.0,0.0001392,2]
[396400376,1764954632186,-500.0,0.0001392,2]
[396400378,1764954632195,-500.0,0.0001392,2]
[396400380,1764954632204,-500.0,0.0001392,2]
[396400382,1764954632213,-500.0,0.0001392,2]
[396400383,1764954632223,-500.0,0.0001392,2]
[396400384,1764954632232,-352.23973446,0.0001392,2]
[396400385,1764954632241,-32687.3768043,0.00013921,2]
[396400460,1764954638008,-928.98345371,0.00013921,2]
[396400462,1764954638019,-1703.45085993,0.00013921,2]
[396400468,1764954638061,-435.0,0.00013921,2]
[396400470,1764954638072,-1442.73549134,0.00013921,2]
[396400472,1764954638083,-2472.99554256,0.00013921,2]
[396400709,1764954640268,-8890.0,0.00013921,2]
[396400711,1764954640281,-890.80323467,0.00013921,2]
[396400713,1764954640291,-3710.86497757,0.00013921,2]
[396400715,1764954640302,-733.73686278,0.00013921,2]
[396400717,1764954640313,-528.89051107,0.00013921,2]
[396400720,1764954640328,-310.27,0.00013921,2]
[396400991,1764954643111,-15674.3370221,0.00013921,2]
[396401003,1764954643220,-1621.08340025,0.00013921,2]
[396401264,1764954646109,-2357.72674961,0.00013921,2]
[396401276,1764954646215,-778.77913156,0.00013921,2]
[396405195,1764954946409,-309.77187164,0.00036621,120]
[396405196,1764954946435,-357.78478256,0.00036621,120]
[396405197,1764954946460,-707.55602085,0.00036621,120]
[396405198,1764954946485,-611.6394279,0.00036621,60]
[396405199,1764954946510,-177.47403232,0.00036621,120]
[396405200,1764954946534,-507.76167759,0.00036621,120]
[396405201,1764954946560,-157.47574473,0.00036621,30]
[396405202,1764954946585,-627.27538255,0.00036621,120]
[396405203,1764954946610,-162.7218931,0.00036621,120]
[396405204,1764954946635,-651.93504214,0.00036621,30]
[396405205,1764954946660,-586.74948761,0.00036621,120]
[396405206,1764954946685,-2133.63086948,0.00036621,30]
[396405207,1764954946709,-1010.75966615,0.00036621,30]
[396405208,1764954946736,-476.68295054,0.00036621,60]
[396405209,1764954946761,-935.12852772,0.00036621,60]
[396405210,1764954946788,-338.31436681,0.00036621,30]
[396405211,1764954946813,-164.94081134,0.00036621,120]
[396405212,1764954946839,-729.28223759,0.00036621,120]
[396405213,1764954946864,-440.1292517,0.00036621,120]
[396405214,1764954946890,-780.84908979,0.00036621,30]
[396405215,1764954946915,-381.6876315,0.00036621,30]
[396405216,1764954946937,-157.08102852,0.00036621,30]
[396405217,1764954946964,-4443.40821063,0.00036621,120]
[396405218,1764954946987,-160.0,0.00036621,30]
[396405219,1764954947010,-160.0,0.00036621,120]
[396405220,1764954947036,-1246.00619689,0.00036621,61]
[396405221,1764954947060,-155.0,0.00036621,120]
[396405222,1764954947084,-500.0,0.00036621,120]
[396405223,1764954947107,-3000.0,0.00036621,120]
[396405224,1764954947131,-500.0,0.00036621,120]
[396405225,1764954947154,-500.0,0.00036621,120]
[396405226,1764954947178,-500.0,0.00036621,120]
[396405227,1764954947203,-500.0,0.00036621,120]
[396405228,1764954947229,-500.0,0.00036621,120]
[396405229,1764954947253,-500.0,0.00036621,120]
[396405230,1764954947275,-500.0,0.00036621,120]
[396405231,1764954947301,-177.22220698,0.00036621,120]
[396405232,1764954947326,-221.91920096,0.00036621,120]
[396405233,1764954947349,-500.0,0.00036621,120]
[396405234,1764954947374,-500.0,0.00036621,120]
[396405235,1764954947397,-500.0,0.00036621,120]
[396405236,1764954947422,-500.0,0.00036621,120]
[396405237,1764954947446,-500.0,0.00036621,120]
[396405238,1764954947470,-500.0,0.00036621,120]
[396405239,1764954947494,-152.81134977,0.00036621,120]
[396405240,1764954947518,-1300.0,0.00036621,120]
[396405241,1764954947543,-982642.5,0.00036621,90]
[396405242,1764954947566,-500.0,0.00036621,120]
[396405243,1764954947588,-500.0,0.00036621,120]
[396405244,1764954947612,-500.0,0.00036621,120]
[396405245,1764954947634,-500.0,0.00036621,120]
[396405246,1764954947658,-500.0,0.00036621,120]
[396405247,1764954947682,-100000.00820107,0.00036621,30]
[396405248,1764954947708,-2884434.49283957,0.00036621,20]
[396405249,1764954952837,-4000000.0,0.00036621,20]
[396405250,1764954955979,-798689.06048642,0.00036621,20]
[396405251,1764954956003,-500.0,0.00036621,120]
[396405252,1764954956029,-15962.12274572,0.00036621,20]
[396405253,1764954956060,-367.77861151,0.00036621,120]
[396405254,1764954956086,-500.0,0.00036621,120]
[396405255,1764954956110,-500.0,0.00036621,120]
[396405256,1764954956135,-500.0,0.00036621,120]
[396405257,1764954956159,-500.0,0.00036621,120]
[396405258,1764954956182,-500.0,0.00036621,120]
[396405259,1764954956207,-500.0,0.00036621,120]
[396405260,1764954956231,-216.87,0.00036621,120]
[396405261,1764954956254,-500.0,0.00036621,120]
[396405262,1764954956278,-500.0,0.00036621,120]
[396405263,1764954956304,-500.0,0.00036621,120]
[396405264,1764954956328,-500.0,0.00036621,120]
[396405265,1764954956353,-500.0,0.00036621,120]
[396405266,1764954956378,-500.0,0.00036621,120]
[396405267,1764954956402,-399.37395533,0.00036621,120]
[396405268,1764954956425,-4635.33109825,0.00036621,120]
[396405269,1764954956449,-500.0,0.00036621,120]
[396405270,1764954956472,-435.40803591,0.00036621,120]
[396405271,1764954956495,-22400.32483624,0.00036621,30]
[396405272,1764954956520,-500.0,0.00036621,120]
[396405273,1764954956544,-500.0,0.00036621,120]
[396405274,1764954956568,-500.0,0.00036621,120]
[396405275,1764954956592,-516.48,0.00036621,120]
[396405276,1764954956616,-999.999999,0.00036621,120]
[396405277,1764954956640,-100000.0,0.00036621,30]
[396405278,1764954956664,-100000.0,0.00036621,30]
[396405279,1764954956688,-100000.0,0.00036621,30]
[396405280,1764954956711,-100000.0,0.00036621,30]
[396405281,1764954956735,-99998.0,0.00036621,30]
[396405282,1764954956760,-500.0,0.00036621,120]
[396405283,1764954956785,-500.0,0.00036621,120]
[396405284,1764954956808,-500.0,0.00036621,120]
[396405285,1764954956831,-500.0,0.00036621,120]
[396405286,1764954956855,-500.0,0.00036621,120]
[396405287,1764954956879,-2000.0,0.00036621,120]
[396405288,1764954956902,-2073.0,0.00036621,30]
[396405289,1764954956926,-8750.0,0.00036621,120]
[396405290,1764954956950,-500.0,0.00036621,120]
[396405291,1764954956976,-500.0,0.00036621,120]
[396405292,1764954957000,-500.0,0.00036621,120]
[396405293,1764954957025,-2630056.25023162,0.00036621,20]
[396405294,1764954961136,-3848468.70988932,0.00036621,20]
[396405295,1764954961159,-488.69425841,0.00036621,120]
[396405296,1764954961182,-977.55457087,0.00036621,120]
[396405297,1764954961206,-286.27102804,0.00036621,120]
[396405298,1764954961229,-1381.87468644,0.00036621,30]
[396405299,1764954961253,-757.46884541,0.00036621,120]
[396405300,1764954961277,-1003.62839527,0.00036621,120]
[396405301,1764954961302,-221.73902047,0.00036621,60]
[396405302,1764954961326,-953.0352126,0.00036621,120]
[396405303,1764954961349,-318.74784247,0.00036621,120]
[396405304,1764954961372,-921.27034207,0.00036621,60]
[396405305,1764954961396,-269.2300556,0.00036621,120]
[396405306,1764954961422,-810.17483641,0.00036621,30]
[396405307,1764954961449,-362.6497248,0.00036621,30]
[396405308,1764954961477,-240.82074905,0.00036621,120]
[396405309,1764954961502,-208.56912505,0.00036621,30]
[396405310,1764954961528,-251.89621783,0.00036621,120]
[396405311,1764954961557,-375.48997058,0.00036621,30]
[396405312,1764954961583,-1050.0236634,0.00036621,120]
[396405313,1764954961608,-576.87783689,0.00036621,120]
[396405314,1764954961634,-1048.37326728,0.00036621,120]
[396405315,1764954961658,-367.17993225,0.00036621,30]
[396405316,1764954961682,-1223.15358293,0.00036621,30]
[396405317,1764954961706,-443.40448083,0.00036621,120]
[396405318,1764954961729,-1725.5627667,0.00036621,120]
[396405319,1764954961753,-224.57155421,0.00036621,120]
[396405320,1764954961777,-329.49517663,0.00036621,120]
[396405321,1764954961802,-566.74000909,0.00036621,120]
[396405322,1764954961825,-322.56465552,0.00036621,60]
[396405323,1764954961849,-2316.87395544,0.00036621,60]
[396405324,1764954961873,-204.59732554,0.00036621,120]
[396405325,1764954961898,-382.29883548,0.00036621,60]
[396405326,1764954961922,-1965.11664295,0.00036621,30]
[396405327,1764954961945,-168.97878063,0.00036621,120]
[396405328,1764954961970,-552.38080703,0.00036621,120]
[396405329,1764954961993,-626.08974757,0.00036621,120]
[396405330,1764954962019,-127607.89220894,0.00036621,20]
[396405331,1764954965096,-4000000.0,0.00036621,20]
[396405332,1764954976286,-4000000.0,0.00036621,20]
[396405333,1764955001288,-4000000.0,0.00036621,20]
[396405334,1764955138684,-150.0,0.00013273,10]
[396405335,1764955140398,-150.0,0.00013273,10]